[Event "Titled Tuesday Blitz March 21 Early 2023"]
[White "monkins"]
[Black "Tomaszewski, Kacper"]
[BlackFideId "1127373"]
[WhiteElo "2242"]
[BlackElo "2211"]
[Result "0-1"]
[Round "07"]
[TimeControl "180+2"]
[Date "2023.03.21"]
[WhiteClock "0:00:05"]
[BlackClock "0:00:30"]

1. Nf3 {[%clk 0:03:00]}  d5 {[%clk 0:02:58]} 2. c4 {[%clk 0:02:59]}  c6 {[%clk 0:02:58]} 3. g3 {[%clk 0:02:59]}  g6 {[%clk 0:02:56]} 4. Bg2 {[%clk 0:02:59]}  Bg7 {[%clk 0:02:57]} 5. O-O {[%clk 0:03:00]}  Nf6 {[%clk 0:02:58]} 6. d3 {[%clk 0:03:00]}  O-O {[%clk 0:02:58]} 7. Nbd2 {[%clk 0:03:01]}  Re8 {[%clk 0:02:57]} 8. Rb1 {[%clk 0:03:01]}  e5 {[%clk 0:02:56]} 9. e4 {[%clk 0:02:58]}  dxe4 {[%clk 0:02:54]} 10. Nxe4 {[%clk 0:02:58]}  Nxe4 {[%clk 0:02:53]} 11. dxe4 {[%clk 0:02:59]}  Qxd1 {[%clk 0:02:51]} 12. Rxd1 {[%clk 0:02:58]}  Bg4 {[%clk 0:02:49]} 13. Be3 {[%clk 0:02:50]}  Nd7 {[%clk 0:02:46]} 14. h3 {[%clk 0:02:46]}  Bxf3 {[%clk 0:02:36]} 15. Rxd7 {[%clk 0:02:43]}  Bxg2 {[%clk 0:02:23]} 16. Kxg2 {[%clk 0:02:44]}  b6 {[%clk 0:02:23]} 17. Rbd1 {[%clk 0:02:32]}  Bf8 {[%clk 0:02:22]} 18. Bg5 {[%clk 0:02:26]}  h6 {[%clk 0:02:21]} 19. Be3 {[%clk 0:02:04]}  Kg7 {[%clk 0:01:56]} 20. Rc7 {[%clk 0:01:51]}  Rec8 {[%clk 0:01:51]} 21. Rdd7 {[%clk 0:01:47]}  Rxc7 {[%clk 0:01:51]} 22. Rxc7 {[%clk 0:01:48]}  c5 {[%clk 0:01:44]} 23. Kf3 {[%clk 0:01:41]}  Bd6 {[%clk 0:01:32]} 24. Rd7 {[%clk 0:01:37]}  Bf8 {[%clk 0:01:32]} 25. g4 {[%clk 0:01:37]}  g5 {[%clk 0:01:30]} 26. Bd2 {[%clk 0:01:30]}  Kf6 {[%clk 0:01:27]} 27. Bc3 {[%clk 0:01:28]}  Ke6 {[%clk 0:01:26]} 28. Rd5 {[%clk 0:01:23]}  Bd6 {[%clk 0:01:25]} 29. Kg3 {[%clk 0:00:57]}  f6 {[%clk 0:01:24]} 30. Rd1 {[%clk 0:00:53]}  a6 {[%clk 0:01:23]} 31. a4 {[%clk 0:00:43]}  Rb8 {[%clk 0:01:20]} 32. h4 {[%clk 0:00:42]}  b5 {[%clk 0:01:09]} 33. axb5 {[%clk 0:00:42]}  axb5 {[%clk 0:01:10]} 34. cxb5 {[%clk 0:00:41]}  Rxb5 {[%clk 0:01:11]} 35. hxg5 {[%clk 0:00:41]}  hxg5 {[%clk 0:01:11]} 36. Rh1 {[%clk 0:00:41]}  Rb7 {[%clk 0:01:05]} 37. Rh8 {[%clk 0:00:40]}  Ra7 {[%clk 0:00:59]} 38. Re8+ {[%clk 0:00:34]}  Kf7 {[%clk 0:00:57]} 39. Rc8 {[%clk 0:00:33]}  Ra1 {[%clk 0:00:54]} 40. Kf3 {[%clk 0:00:24]}  Rd1 {[%clk 0:00:46]} 41. Ke2 {[%clk 0:00:23]}  Rg1 {[%clk 0:00:45]} 42. Kf3 {[%clk 0:00:22]}  Rd1 {[%clk 0:00:45]} 43. Ke2 {[%clk 0:00:22]}  Rh1 {[%clk 0:00:44]} 44. Kf3 {[%clk 0:00:23]}  Ke6 {[%clk 0:00:45]} 45. Re8+ {[%clk 0:00:22]}  Be7 {[%clk 0:00:44]} 46. Ra8 {[%clk 0:00:20]}  Rh3+ {[%clk 0:00:41]} 47. Ke2 {[%clk 0:00:20]}  Bd6 {[%clk 0:00:38]} 48. Ra6 {[%clk 0:00:19]}  Kd7 {[%clk 0:00:38]} 49. Ra7+ {[%clk 0:00:18]}  Ke6 {[%clk 0:00:36]} 50. Ra6 {[%clk 0:00:18]}  Rh4 {[%clk 0:00:36]} 51. Kf3 {[%clk 0:00:17]}  Rh8 {[%clk 0:00:34]} 52. Rb6 {[%clk 0:00:15]}  Rc8 {[%clk 0:00:33]} 53. Bd2 {[%clk 0:00:13]}  c4 {[%clk 0:00:31]} 54. Bb4 {[%clk 0:00:12]}  Rd8 {[%clk 0:00:31]} 55. Ke3 {[%clk 0:00:10]}  Ke7 {[%clk 0:00:30]} 56. Rxd6 {[%clk 0:00:09]}  Rxd6 {[%clk 0:00:30]} 57. f3 {[%clk 0:00:07]}  Kd7 {[%clk 0:00:29]} 58. Bxd6 {[%clk 0:00:07]}  Kxd6 {[%clk 0:00:30]} 59. Kd2 {[%clk 0:00:07]}  Kc6 {[%clk 0:00:30]} 60. Kc3 {[%clk 0:00:07]}  Kc5 {[%clk 0:00:27]} 61. Kc2 {[%clk 0:00:06]}  Kb4 {[%clk 0:00:26]} 62. Kc1 {[%clk 0:00:03]}  Kb3 {[%clk 0:00:27]} 63. Kb1 {[%clk 0:00:03]}  c3 {[%clk 0:00:27]} 64. bxc3 {[%clk 0:00:03]}  Kxc3 {[%clk 0:00:28]} 65. Kc1 {[%clk 0:00:04]}  Kd3 {[%clk 0:00:29]} 66. Kd1 {[%clk 0:00:04]}  Ke3 {[%clk 0:00:30]} 67. Ke1 {[%clk 0:00:05]}  Kxf3 {[%clk 0:00:30]} 0-1


[Site "https://www.chess.com"]

[Event "Titled Tuesday Blitz March 21 Early 2023"]
[White "Dinu, Dumitru-Daniel"]
[Black "Ciuffoletti, Paolo"]
[WhiteFideId "1208403"]
[BlackFideId "807630"]
[WhiteElo "2240"]
[BlackElo "2143"]
[Result "1/2-1/2"]
[Round "07"]
[TimeControl "180+2"]
[Date "2023.03.21"]
[WhiteClock "0:00:30"]
[BlackClock "0:00:16"]

1. e4 {[%clk 0:03:00]}  c5 {[%clk 0:02:59]} 2. b3 {[%clk 0:02:59]}  d6 {[%clk 0:02:56]} 3. Bb2 {[%clk 0:02:58]}  Nf6 {[%clk 0:02:56]} 4. Nc3 {[%clk 0:02:58]}  g6 {[%clk 0:02:56]} 5. Nd5 {[%clk 0:02:55]}  Bg7 {[%clk 0:02:56]} 6. Nxf6+ {[%clk 0:02:56]}  exf6 {[%clk 0:02:55]} 7. g3 {[%clk 0:02:55]}  O-O {[%clk 0:02:55]} 8. Bg2 {[%clk 0:02:55]}  Re8 {[%clk 0:02:26]} 9. Ne2 {[%clk 0:02:53]}  Bg4 {[%clk 0:02:03]} 10. O-O {[%clk 0:02:49]}  Qd7 {[%clk 0:02:01]} 11. f3 {[%clk 0:02:35]}  Bh3 {[%clk 0:01:59]} 12. Bxh3 {[%clk 0:02:32]}  Qxh3 {[%clk 0:01:59]} 13. Nf4 {[%clk 0:02:32]}  Qd7 {[%clk 0:01:55]} 14. Nd5 {[%clk 0:02:32]}  Re6 {[%clk 0:01:32]} 15. d4 {[%clk 0:02:22]}  cxd4 {[%clk 0:01:26]} 16. Qxd4 {[%clk 0:02:21]}  Nc6 {[%clk 0:01:24]} 17. Qd2 {[%clk 0:02:20]}  Ne7 {[%clk 0:01:06]} 18. Rad1 {[%clk 0:02:15]}  Nxd5 {[%clk 0:01:04]} 19. Qxd5 {[%clk 0:02:15]}  Qc6 {[%clk 0:00:43]} 20. c4 {[%clk 0:02:09]}  a6 {[%clk 0:00:35]} 21. Rd2 {[%clk 0:02:05]}  Qxd5 {[%clk 0:00:32]} 22. Rxd5 {[%clk 0:02:05]}  b5 {[%clk 0:00:32]} 23. cxb5 {[%clk 0:01:30]}  axb5 {[%clk 0:00:30]} 24. a3 {[%clk 0:01:12]}  f5 {[%clk 0:00:27]} 25. Bxg7 {[%clk 0:01:11]}  Kxg7 {[%clk 0:00:26]} 26. exf5 {[%clk 0:01:12]}  Re3 {[%clk 0:00:22]} 27. fxg6 {[%clk 0:01:06]}  hxg6 {[%clk 0:00:21]} 28. Rxb5 {[%clk 0:01:02]}  Rxa3 {[%clk 0:00:20]} 29. f4 {[%clk 0:00:52]}  Raxb3 {[%clk 0:00:18]} 30. Rd5 {[%clk 0:00:51]}  Red3 {[%clk 0:00:18]} 31. Rd1 {[%clk 0:00:50]}  Rxd1+ {[%clk 0:00:19]} 32. Rxd1 {[%clk 0:00:50]}  Rb6 {[%clk 0:00:19]} 33. Kf2 {[%clk 0:00:50]}  Kf6 {[%clk 0:00:19]} 34. Kf3 {[%clk 0:00:50]}  Ke6 {[%clk 0:00:19]} 35. Kg4 {[%clk 0:00:48]}  Rb2 {[%clk 0:00:19]} 36. h4 {[%clk 0:00:48]}  Rb3 {[%clk 0:00:19]} 37. Rd2 {[%clk 0:00:43]}  d5 {[%clk 0:00:18]} 38. Re2+ {[%clk 0:00:42]}  Kf6 {[%clk 0:00:17]} 39. Rd2 {[%clk 0:00:37]}  Ke6 {[%clk 0:00:16]} 40. Re2+ {[%clk 0:00:37]}  Kf6 {[%clk 0:00:16]} 41. Rd2 {[%clk 0:00:30]}  Ke6 {[%clk 0:00:16]} 1/2-1/2


[Site "https://www.chess.com"]

[Event "Titled Tuesday Blitz March 21 Early 2023"]
[White "lisjakzlatko1"]
[Black "Kovalevsky, Stanislav"]
[BlackFideId "13508598"]
[WhiteElo "2206"]
[BlackElo "2174"]
[Result "0-1"]
[Round "07"]
[TimeControl "180+2"]
[Date "2023.03.21"]
[WhiteClock "0:00:02"]
[BlackClock "0:00:35"]

1. e4 {[%clk 0:03:00]}  e6 {[%clk 0:03:00]} 2. d4 {[%clk 0:02:59]}  d5 {[%clk 0:03:00]} 3. e5 {[%clk 0:02:57]}  c5 {[%clk 0:03:01]} 4. c3 {[%clk 0:02:58]}  Nc6 {[%clk 0:03:01]} 5. Nf3 {[%clk 0:02:58]}  cxd4 {[%clk 0:03:02]} 6. cxd4 {[%clk 0:02:57]}  f6 {[%clk 0:03:01]} 7. exf6 {[%clk 0:02:54]}  Nxf6 {[%clk 0:03:02]} 8. Bd3 {[%clk 0:02:54]}  Bd6 {[%clk 0:03:02]} 9. O-O {[%clk 0:02:53]}  O-O {[%clk 0:03:03]} 10. Re1 {[%clk 0:02:52]}  Bd7 {[%clk 0:02:20]} 11. Nc3 {[%clk 0:02:48]}  Be8 {[%clk 0:02:19]} 12. h3 {[%clk 0:02:16]}  Bh5 {[%clk 0:02:09]} 13. g4 {[%clk 0:01:56]}  Nxg4 {[%clk 0:02:08]} 14. hxg4 {[%clk 0:01:55]}  Bxg4 {[%clk 0:02:09]} 15. Re3 {[%clk 0:01:55]}  Nxd4 {[%clk 0:01:56]} 16. Bxh7+ {[%clk 0:01:53]}  Kxh7 {[%clk 0:01:50]} 17. Qxd4 {[%clk 0:01:53]}  Bxf3 {[%clk 0:01:36]} 18. Qd3+ {[%clk 0:01:48]}  Be4 {[%clk 0:01:33]} 19. Nxe4 {[%clk 0:01:45]}  dxe4 {[%clk 0:01:29]} 20. Qxe4+ {[%clk 0:01:45]}  Kg8 {[%clk 0:01:25]} 21. Qxe6+ {[%clk 0:01:44]}  Rf7 {[%clk 0:01:25]} 22. Rf3 {[%clk 0:01:42]}  Qd7 {[%clk 0:01:11]} 23. Qb3 {[%clk 0:01:36]}  Qg4+ {[%clk 0:00:54]} 24. Rg3 {[%clk 0:00:08]}  Bxg3 {[%clk 0:00:53]} 25. fxg3 {[%clk 0:00:07]}  Qf3 {[%clk 0:00:52]} 26. Qxf3 {[%clk 0:00:05]}  Rxf3 {[%clk 0:00:53]} 27. Kg2 {[%clk 0:00:05]}  Rd3 {[%clk 0:00:46]} 28. Bf4 {[%clk 0:00:05]}  Rc8 {[%clk 0:00:44]} 29. Re1 {[%clk 0:00:03]}  Rc2+ {[%clk 0:00:42]} 30. Kh3 {[%clk 0:00:03]}  Kf7 {[%clk 0:00:41]} 31. Bg5 {[%clk 0:00:02]}  Rxb2 {[%clk 0:00:35]} 0-1


[Site "https://www.chess.com"]

[Event "Titled Tuesday Blitz March 21 Early 2023"]
[White "Kiseleva, Arina"]
[Black "Vedder, Richard"]
[WhiteFideId "4164989"]
[BlackFideId "1004166"]
[WhiteElo "1756"]
[BlackElo "2168"]
[Result "0-1"]
[Round "07"]
[TimeControl "180+2"]
[Date "2023.03.21"]
[WhiteClock "0:00:02"]
[BlackClock "0:00:59"]

1. d4 {[%clk 0:03:00]}  d5 {[%clk 0:02:59]} 2. Nf3 {[%clk 0:03:00]}  Nf6 {[%clk 0:02:58]} 3. e3 {[%clk 0:02:59]}  Bf5 {[%clk 0:02:57]} 4. Bd3 {[%clk 0:02:59]}  Bxd3 {[%clk 0:02:57]} 5. cxd3 {[%clk 0:03:00]}  c6 {[%clk 0:02:56]} 6. Nc3 {[%clk 0:03:00]}  e6 {[%clk 0:02:57]} 7. O-O {[%clk 0:02:56]}  Be7 {[%clk 0:02:57]} 8. e4 {[%clk 0:02:56]}  O-O {[%clk 0:02:57]} 9. Re1 {[%clk 0:02:52]}  Na6 {[%clk 0:02:50]} 10. Qc2 {[%clk 0:02:48]}  Rc8 {[%clk 0:02:49]} 11. a3 {[%clk 0:02:39]}  c5 {[%clk 0:02:40]} 12. dxc5 {[%clk 0:02:32]}  dxe4 {[%clk 0:02:38]} 13. dxe4 {[%clk 0:02:27]}  Nxc5 {[%clk 0:02:37]} 14. e5 {[%clk 0:02:12]}  Nd5 {[%clk 0:02:34]} 15. Rd1 {[%clk 0:02:09]}  a6 {[%clk 0:02:24]} 16. Nxd5 {[%clk 0:01:58]}  exd5 {[%clk 0:02:25]} 17. Qf5 {[%clk 0:01:54]}  Ne6 {[%clk 0:02:19]} 18. b4 {[%clk 0:01:40]}  Rc4 {[%clk 0:02:18]} 19. Bb2 {[%clk 0:01:39]}  Qd7 {[%clk 0:02:11]} 20. h3 {[%clk 0:01:31]}  Rfc8 {[%clk 0:02:11]} 21. Nd4 {[%clk 0:01:25]}  g6 {[%clk 0:02:06]} 22. Qf3 {[%clk 0:01:19]}  Nxd4 {[%clk 0:02:02]} 23. Bxd4 {[%clk 0:01:08]}  Qe6 {[%clk 0:02:02]} 24. Rd3 {[%clk 0:01:03]}  Rc1+ {[%clk 0:01:53]} 25. Rxc1 {[%clk 0:01:01]}  Rxc1+ {[%clk 0:01:54]} 26. Rd1 {[%clk 0:00:53]}  Qc6 {[%clk 0:01:46]} 27. Rxc1 {[%clk 0:00:49]}  Qxc1+ {[%clk 0:01:47]} 28. Kh2 {[%clk 0:00:48]}  Qc4 {[%clk 0:01:47]} 29. Qe3 {[%clk 0:00:36]}  Qc6 {[%clk 0:01:34]} 30. Bc3 {[%clk 0:00:29]}  b5 {[%clk 0:01:32]} 31. Qd4 {[%clk 0:00:28]}  Qc4 {[%clk 0:01:31]} 32. f4 {[%clk 0:00:15]}  h5 {[%clk 0:01:24]} 33. Kg3 {[%clk 0:00:13]}  Kf8 {[%clk 0:01:14]} 34. Kf2 {[%clk 0:00:11]}  Ke8 {[%clk 0:01:09]} 35. Ke1 {[%clk 0:00:04]}  Qxd4 {[%clk 0:01:07]} 36. Bxd4 {[%clk 0:00:03]}  Kd7 {[%clk 0:01:08]} 37. Kd2 {[%clk 0:00:04]}  Ke6 {[%clk 0:01:08]} 38. Ke3 {[%clk 0:00:03]}  Kf5 {[%clk 0:01:06]} 39. Kf3 {[%clk 0:00:03]}  h4 {[%clk 0:01:06]} 40. g3 {[%clk 0:00:02]}  hxg3 {[%clk 0:01:05]} 41. Kxg3 {[%clk 0:00:02]}  Ke4 {[%clk 0:01:06]} 42. Bc5 {[%clk 0:00:02]}  Bd8 {[%clk 0:01:00]} 43. h4 {[%clk 0:00:02]}  d4 {[%clk 0:01:00]} 44. Kg4 {[%clk 0:00:02]}  d3 {[%clk 0:00:59]} 0-1


[Site "https://www.chess.com"]

[Event "Titled Tuesday Blitz March 21 Early 2023"]
[White "Chernov, Mikhail"]
[Black "Palacio,Igor Da Paz"]
[WhiteFideId "24143170"]
[BlackFideId "2121140"]
[WhiteElo "2113"]
[BlackElo "2126"]
[Result "1-0"]
[Round "07"]
[TimeControl "180+2"]
[Date "2023.03.21"]
[WhiteClock "0:01:00"]
[BlackClock "0:00:06"]

1. d4 {[%clk 0:03:00]}  Nf6 {[%clk 0:02:59]} 2. Nc3 {[%clk 0:03:01]}  d6 {[%clk 0:02:55]} 3. e4 {[%clk 0:03:00]}  g6 {[%clk 0:02:56]} 4. Be3 {[%clk 0:03:00]}  c6 {[%clk 0:02:55]} 5. Qd2 {[%clk 0:03:00]}  b5 {[%clk 0:02:55]} 6. f3 {[%clk 0:02:56]}  Nbd7 {[%clk 0:02:54]} 7. Bd3 {[%clk 0:02:55]}  Qc7 {[%clk 0:02:51]} 8. Nce2 {[%clk 0:02:54]}  a6 {[%clk 0:02:47]} 9. c3 {[%clk 0:02:54]}  Bb7 {[%clk 0:02:47]} 10. h4 {[%clk 0:02:45]}  h5 {[%clk 0:02:46]} 11. Nh3 {[%clk 0:02:45]}  Bg7 {[%clk 0:02:42]} 12. Ng5 {[%clk 0:02:45]}  Nb6 {[%clk 0:02:38]} 13. Nf4 {[%clk 0:02:40]}  e5 {[%clk 0:02:35]} 14. dxe5 {[%clk 0:02:36]}  dxe5 {[%clk 0:02:36]} 15. Nfe6 {[%clk 0:02:33]}  fxe6 {[%clk 0:02:10]} 16. Nxe6 {[%clk 0:02:34]}  Qe7 {[%clk 0:02:00]} 17. Nxg7+ {[%clk 0:02:33]}  Qxg7 {[%clk 0:02:00]} 18. Bxb6 {[%clk 0:02:34]}  Nd7 {[%clk 0:01:49]} 19. Be3 {[%clk 0:02:32]}  O-O-O {[%clk 0:01:49]} 20. O-O-O {[%clk 0:02:23]}  Qf7 {[%clk 0:01:45]} 21. Kb1 {[%clk 0:02:22]}  Nf8 {[%clk 0:01:43]} 22. Qc2 {[%clk 0:02:15]}  Ne6 {[%clk 0:01:41]} 23. a4 {[%clk 0:02:12]}  Nf4 {[%clk 0:01:39]} 24. axb5 {[%clk 0:02:11]}  axb5 {[%clk 0:01:28]} 25. Bc5 {[%clk 0:02:04]}  Rd7 {[%clk 0:01:20]} 26. g3 {[%clk 0:02:03]}  Nxd3 {[%clk 0:01:18]} 27. Rxd3 {[%clk 0:02:04]}  Rhd8 {[%clk 0:01:16]} 28. Rhd1 {[%clk 0:02:02]}  Kc7 {[%clk 0:01:08]} 29. Rxd7+ {[%clk 0:01:43]}  Rxd7 {[%clk 0:01:09]} 30. Rxd7+ {[%clk 0:01:43]}  Qxd7 {[%clk 0:01:09]} 31. Qe2 {[%clk 0:01:39]}  Qh3 {[%clk 0:01:00]} 32. Qf2 {[%clk 0:01:33]}  Qh1+ {[%clk 0:00:56]} 33. Kc2 {[%clk 0:01:33]}  Bc8 {[%clk 0:00:47]} 34. Bb6+ {[%clk 0:01:16]}  Kb7 {[%clk 0:00:22]} 35. Bd8 {[%clk 0:01:16]}  Bd7 {[%clk 0:00:13]} 36. Qb6+ {[%clk 0:01:16]}  Ka8 {[%clk 0:00:13]} 37. Bc7 {[%clk 0:00:59]}  Qg2+ {[%clk 0:00:12]} 38. Kb3 {[%clk 0:01:00]}  Be6+ {[%clk 0:00:11]} 39. Ka3 {[%clk 0:01:00]}  Bc8 {[%clk 0:00:06]} 40. Qb8# {[%clk 0:01:00]} 1-0


[Site "https://www.chess.com"]

[Event "Titled Tuesday Blitz March 21 Early 2023"]
[White "Tarnowska, Aleksandra"]
[Black "Jimenez Jimenez, Leandro"]
[WhiteFideId "1180967"]
[BlackFideId "6415253"]
[WhiteElo "1776"]
[BlackElo "2263"]
[Result "1-0"]
[Round "07"]
[TimeControl "180+2"]
[Date "2023.03.21"]
[WhiteClock "0:00:05"]
[BlackClock "0:00:03"]

1. e4 {[%clk 0:03:00]}  e5 {[%clk 0:02:53]} 2. Nf3 {[%clk 0:03:01]}  Nc6 {[%clk 0:02:53]} 3. Bb5 {[%clk 0:03:01]}  a6 {[%clk 0:02:53]} 4. Ba4 {[%clk 0:03:02]}  Nf6 {[%clk 0:02:53]} 5. O-O {[%clk 0:03:02]}  b5 {[%clk 0:02:53]} 6. Bb3 {[%clk 0:03:02]}  Be7 {[%clk 0:02:54]} 7. Re1 {[%clk 0:02:58]}  O-O {[%clk 0:02:53]} 8. h3 {[%clk 0:02:56]}  Bb7 {[%clk 0:02:50]} 9. c3 {[%clk 0:02:49]}  d5 {[%clk 0:02:48]} 10. exd5 {[%clk 0:02:37]}  Nxd5 {[%clk 0:02:49]} 11. d3 {[%clk 0:02:17]}  Bf6 {[%clk 0:02:37]} 12. Nbd2 {[%clk 0:02:14]}  Nf4 {[%clk 0:02:36]} 13. Ne4 {[%clk 0:01:58]}  Nxd3 {[%clk 0:02:13]} 14. Nxf6+ {[%clk 0:01:40]}  gxf6 {[%clk 0:02:12]} 15. Re4 {[%clk 0:01:28]}  f5 {[%clk 0:02:05]} 16. Bg5 {[%clk 0:01:26]}  Qd6 {[%clk 0:01:59]} 17. Rh4 {[%clk 0:01:25]}  e4 {[%clk 0:01:54]} 18. Nh2 {[%clk 0:00:28]}  Qg6 {[%clk 0:01:50]} 19. Qd2 {[%clk 0:00:21]}  Rad8 {[%clk 0:01:28]} 20. Rh6 {[%clk 0:00:19]}  Qg7 {[%clk 0:01:02]} 21. Bf6 {[%clk 0:00:11]}  Nde5 {[%clk 0:00:51]} 22. Qf4 {[%clk 0:00:05]}  Ng6 {[%clk 0:00:49]} 23. Qg5 {[%clk 0:00:03]}  Nce5 {[%clk 0:00:23]} 24. Bxg7 {[%clk 0:00:04]}  Kxg7 {[%clk 0:00:23]} 25. h4 {[%clk 0:00:03]}  Ng4 {[%clk 0:00:17]} 26. Nxg4 {[%clk 0:00:03]}  fxg4 {[%clk 0:00:13]} 27. h5 {[%clk 0:00:03]}  f6 {[%clk 0:00:14]} 28. Qxg4 {[%clk 0:00:03]}  Bc8 {[%clk 0:00:13]} 29. Qg3 {[%clk 0:00:03]}  Kxh6 {[%clk 0:00:12]} 30. hxg6 {[%clk 0:00:03]}  hxg6 {[%clk 0:00:13]} 31. Qh2+ {[%clk 0:00:03]}  Kg7 {[%clk 0:00:13]} 32. Qxc7+ {[%clk 0:00:04]}  Rd7 {[%clk 0:00:13]} 33. Qg3 {[%clk 0:00:03]}  Rd2 {[%clk 0:00:12]} 34. Re1 {[%clk 0:00:03]}  Bf5 {[%clk 0:00:12]} 35. Qc7+ {[%clk 0:00:03]}  Rd7 {[%clk 0:00:10]} 36. Qf4 {[%clk 0:00:03]}  Re7 {[%clk 0:00:03]} 37. g4 {[%clk 0:00:03]}  Bc8 {[%clk 0:00:03]} 38. Rxe4 {[%clk 0:00:03]}  Rfe8 {[%clk 0:00:02]} 39. Rxe7+ {[%clk 0:00:04]}  Rxe7 {[%clk 0:00:03]} 40. Kg2 {[%clk 0:00:03]}  Bb7+ {[%clk 0:00:04]} 41. f3 {[%clk 0:00:03]}  g5 {[%clk 0:00:04]} 42. Qd2 {[%clk 0:00:03]}  a5 {[%clk 0:00:03]} 43. c4 {[%clk 0:00:02]}  a4 {[%clk 0:00:03]} 44. Bc2 {[%clk 0:00:02]}  bxc4 {[%clk 0:00:04]} 45. Qc3 {[%clk 0:00:02]}  Re2+ {[%clk 0:00:04]} 46. Kg3 {[%clk 0:00:03]}  Re7 {[%clk 0:00:03]} 47. Qxc4 {[%clk 0:00:03]}  Re8 {[%clk 0:00:01]} 48. Be4 {[%clk 0:00:04]}  Re7 {[%clk 0:00:01]} 49. Bxb7 {[%clk 0:00:03]}  Rxb7 {[%clk 0:00:02]} 50. Qxa4 {[%clk 0:00:04]}  Rxb2 {[%clk 0:00:02]} 51. Qd7+ {[%clk 0:00:04]}  Kg6 {[%clk 0:00:02]} 52. Qe8+ {[%clk 0:00:05]}  Kg7 {[%clk 0:00:03]} 53. Qe7+ {[%clk 0:00:06]}  Kg6 {[%clk 0:00:03]} 54. Qe4+ {[%clk 0:00:06]}  Kg7 {[%clk 0:00:04]} 55. Qd5 {[%clk 0:00:05]}  Rb1 {[%clk 0:00:01]} 56. a4 {[%clk 0:00:05]}  Ra1 {[%clk 0:00:02]} 57. a5 {[%clk 0:00:05]}  Rg1+ {[%clk 0:00:01]} 58. Kf2 {[%clk 0:00:05]}  Ra1 {[%clk 0:00:02]} 59. Qb7+ {[%clk 0:00:05]}  Kg6 {[%clk 0:00:02]} 60. a6 {[%clk 0:00:05]}  Ra2+ {[%clk 0:00:02]} 61. Ke3 {[%clk 0:00:05]}  Ra3+ {[%clk 0:00:03]} 62. Kf2 {[%clk 0:00:05]}  Ra2+ {[%clk 0:00:03]} 63. Kg3 {[%clk 0:00:06]}  f5 {[%clk 0:00:03]} 64. gxf5+ {[%clk 0:00:06]}  Kxf5 {[%clk 0:00:04]} 65. a7 {[%clk 0:00:06]}  Ra3 {[%clk 0:00:04]} 66. a8=Q {[%clk 0:00:06]}  Ra6 {[%clk 0:00:04]} 67. Qf8+ {[%clk 0:00:05]}  Rf6 {[%clk 0:00:03]} 68. Qd5+ {[%clk 0:00:05]}  Kg6 {[%clk 0:00:03]} 69. Qdg8+ {[%clk 0:00:05]}  Kf5 {[%clk 0:00:04]} 70. Qh7+ {[%clk 0:00:05]}  Ke5 {[%clk 0:00:04]} 71. Qfe7+ {[%clk 0:00:05]}  Re6 {[%clk 0:00:03]} 72. Qe4# {[%clk 0:00:05]} 1-0


[Site "https://www.chess.com"]

[Event "Titled Tuesday Blitz March 21 Early 2023"]
[White "Jaskolka, Tomasz"]
[Black "Levitan, Caleb Levi"]
[WhiteFideId "1170791"]
[BlackFideId "14332620"]
[WhiteElo "2155"]
[BlackElo "1963"]
[Result "1-0"]
[Round "07"]
[TimeControl "180+2"]
[Date "2023.03.21"]
[WhiteClock "0:00:36"]
[BlackClock "0:00:05"]

1. e4 {[%clk 0:02:45]}  e5 {[%clk 0:02:58]} 2. Nf3 {[%clk 0:02:44]}  Nc6 {[%clk 0:02:58]} 3. Bc4 {[%clk 0:02:45]}  Bc5 {[%clk 0:02:57]} 4. b4 {[%clk 0:02:44]}  Bxb4 {[%clk 0:02:52]} 5. c3 {[%clk 0:02:44]}  Be7 {[%clk 0:02:49]} 6. d4 {[%clk 0:02:44]}  Na5 {[%clk 0:02:40]} 7. Nxe5 {[%clk 0:02:07]}  Nxc4 {[%clk 0:02:39]} 8. Nxc4 {[%clk 0:02:07]}  d5 {[%clk 0:02:39]} 9. exd5 {[%clk 0:02:07]}  Nf6 {[%clk 0:02:38]} 10. O-O {[%clk 0:02:06]}  O-O {[%clk 0:02:35]} 11. d6 {[%clk 0:02:04]}  cxd6 {[%clk 0:02:23]} 12. Bf4 {[%clk 0:01:59]}  d5 {[%clk 0:02:20]} 13. Ne5 {[%clk 0:01:59]}  Bf5 {[%clk 0:02:15]} 14. Nd2 {[%clk 0:01:52]}  Rc8 {[%clk 0:02:14]} 15. Qb3 {[%clk 0:01:51]}  b6 {[%clk 0:02:06]} 16. Rfe1 {[%clk 0:01:47]}  Ne4 {[%clk 0:02:01]} 17. Nxe4 {[%clk 0:01:46]}  Bxe4 {[%clk 0:02:02]} 18. f3 {[%clk 0:01:45]}  Bf5 {[%clk 0:01:59]} 19. a4 {[%clk 0:01:42]}  f6 {[%clk 0:01:47]} 20. Ng4 {[%clk 0:01:34]}  h5 {[%clk 0:01:27]} 21. Ne3 {[%clk 0:01:34]}  Be6 {[%clk 0:01:26]} 22. a5 {[%clk 0:01:32]}  g5 {[%clk 0:01:09]} 23. Bg3 {[%clk 0:01:31]}  h4 {[%clk 0:01:09]} 24. Bf2 {[%clk 0:01:31]}  Rb8 {[%clk 0:00:57]} 25. axb6 {[%clk 0:01:29]}  Rxb6 {[%clk 0:00:56]} 26. Qc2 {[%clk 0:01:28]}  Bf7 {[%clk 0:00:49]} 27. Rxa7 {[%clk 0:01:26]}  Bd6 {[%clk 0:00:32]} 28. Ng4 {[%clk 0:01:16]}  Kg7 {[%clk 0:00:26]} 29. Qf5 {[%clk 0:01:03]}  Bb8 {[%clk 0:00:24]} 30. Rd7 {[%clk 0:00:53]}  Qc8 {[%clk 0:00:24]} 31. Rxf7+ {[%clk 0:00:44]}  Rxf7 {[%clk 0:00:16]} 32. Qxc8 {[%clk 0:00:43]}  Bf4 {[%clk 0:00:13]} 33. g3 {[%clk 0:00:39]}  hxg3 {[%clk 0:00:13]} 34. hxg3 {[%clk 0:00:40]}  Bd2 {[%clk 0:00:14]} 35. Re8 {[%clk 0:00:39]}  Rb1+ {[%clk 0:00:14]} 36. Kg2 {[%clk 0:00:39]}  Rfb7 {[%clk 0:00:05]} 37. Rg8+ {[%clk 0:00:36]}  Kh7 {[%clk 0:00:05]} 38. Rh8+ {[%clk 0:00:36]}  Kg7 {[%clk 0:00:05]} 39. Qg8# {[%clk 0:00:36]} 1-0


[Site "https://www.chess.com"]